Cogmind - Beta 9.6 @@@ ROGUE MODE // 2020.09.03 @ 14:08:51 Player: Pimski Result: Self-destructed Performance ------------- Evolutions (6) 3000 Regions Visited (27) 5400 Robots Destroyed (120) 600 Value Destroyed (2709) 2709 Prototype IDs (71) 1420 Alien Tech Used (2) 400 Bonus (415) 415 TOTAL SCORE: 13944 Bonus ------- High Alert Combat Kills 9 Follower Combat Kills 37 Aligned with FarCom 300 Met Data Miner 300 Met Imprinter 300 Destroyed Z-Imprinter 1000 Met Zhirov 300 Met Warlord at Base 500 MAIN.C Attacked Warlord 500 Friendly Fire -2831 Cogmind --------- Core Integrity 1089/1150 Matter 220/300 Energy 1635/1700 System Corruption 0% Temperature Cool (0) Movement Flying (13) Location -4/Zhirov Parts ------- > --- POWER (2) -------- Vortex Chain Reactor > --- PROPULSION (5) --- Cooled Nuclear Pulse Thruster Nuclear Pulse Array Electron Diverter Electron Diverter > --- UTILITY (10) ----- Advanced Power Amplifier Medium Storage Unit Medium Storage Unit Zionite Biocell Gravity Neutralizing Apparatus Zionite Metafield Generator Advanced Reaction Control System Experimental Phase Shifter Advanced Hacking Suite Experimental System Shield > --- WEAPON (2) ------- Ionic Axe > --- INVENTORY (12) --- Zionite Light DM Reactor Improved Cesium-ion Thruster Cooled Nuclear Pulse Thruster Cooled Nuclear Pulse Thruster Advanced Power Amplifier Gravity Neutralizing Apparatus Experimental Target Analyzer Experimental Power Shielding Experimental Thermal Shield EM Disruption Field Advanced Hacking Suite 8R-AWN's Boregun Peak State ------------ > --- POWER ------------ Vortex Chain Reactor > --- PROPULSION ------- Cooled Nuclear Pulse Thruster Nuclear Pulse Array Electron Diverter Electron Diverter > --- UTILITY ---------- Advanced Power Amplifier Medium Storage Unit Medium Storage Unit Zionite Biocell Gravity Neutralizing Apparatus Zionite Metafield Generator Advanced Reaction Control System Experimental Phase Shifter Advanced Hacking Suite Experimental System Shield > --- WEAPON ----------- Ionic Axe > --- INVENTORY -------- Zionite Light DM Reactor Improved Cesium-ion Thruster Improved Cesium-ion Thruster Advanced Power Amplifier Gravity Neutralizing Apparatus Experimental Target Analyzer Zionite Weapon Casing Experimental Thermal Shield EM Disruption Field Advanced Hacking Suite 8R-AWN's Boregun Heavy Missile Launcher [Rating: 135] Favorites ----------- Power Light Ion Engine Engine Light Ion Engine Power Core Light Fission Core Reactor Zionite Light DM Reactor Propulsion Armored Treads Treads Armored Treads Leg Aluminum Leg Flight Unit Improved Flight Unit Utility Large Storage Unit Device Gravity Neutralizing Apparatus Storage Large Storage Unit Processor Experimental Targeting Computer Hackware Improved System Shield Protection Improved Utility Shielding Weapon Improved Assault Rifle Energy Gun Small Laser Ballistic Gun Improved Assault Rifle Ballistic Cannon Light Cannon Launcher Mini Grenade Launcher Special Weapon Plasma Cutter Slashing Weapon Power Sword Piercing Weapon Force Lance Build | -11 -10 -10 -9 -9 -9 -8 -8 -7 -7 -7 -7 -6 -6 -6 -6 -6 -6 -5 -5 -5 -5 -5 -4 -4 -4 -4 -4 ------- Run | Scr Mat Min Mat Min Exi Min Mat Fac Low Low Dat Pro Fac Low Low Zio Dee Pro Fac Upp Upp War Pro Fac Upp Upp Zhi Slots Evolved 12 | . . . 2 . . . 2 2 . . . . 2 . . . . . 2 . . . . 2 . . . Power 1 | . . . . . . . . . . . . . . . . . . . 1 . . . . . . . . Propulsion 3 | . . . . . . . . 1 . . . . 1 . . . . . 1 . . . . . . . . Utility 8 | . . . 2 . . . 2 1 . . . . 1 . . . . . . . . . . 2 . . . Weapon . | . . . . . . . . . . . . . . . . . . . . . . . . . . . . Parts Attached 168 | . 13 11 6 1 17 5 30 17 . . . 1 15 . 1 4 18 . 9 . 1 7 . 5 . . 7 Power 14 | . 3 2 . . 1 . 1 1 . . . . 2 . . . 2 . 1 . . 1 . . . . . Engine 8 | . 3 2 . . . . 1 1 . . . . 1 . . . . . . . . . . . . . . Core 2 | . . . . . 1 . . . . . . . 1 . . . . . . . . . . . . . . Reactor 4 | . . . . . . . . . . . . . . . . . 2 . 1 . . 1 . . . . . Propulsion 28 | . 2 2 2 . 2 . 5 4 . . . 1 2 . . . 1 . 3 . . 2 . 1 . . 1 Treads 13 | . 2 2 2 . 2 . 5 . . . . . . . . . . . . . . . . . . . . Leg . | . . . . . . . . . . . . . . . . . . . . . . . . . . . . Wheel . | . . . . . . . . . . . . . . . . . . . . . . . . . . . . Hover . | . . . . . . . . . . . . . . . . . . . . . . . . . . . . Flight 15 | . . . . . . . . 4 . . . 1 2 . . . 1 . 3 . . 2 . 1 . . 1 Utility 80 | . 4 1 2 1 10 3 11 9 . . . . 9 . 1 . 12 . 3 . 1 4 . 3 . . 6 Device 27 | . . . . . 4 . 1 3 . . . . 4 . . . 5 . 2 . . 3 . . . . 5 Storage 20 | . 4 1 1 1 2 2 . 2 . . . . 2 . . . 4 . . . . . . 1 . . . Processor 5 | . . . . . 1 . 1 1 . . . . 2 . . . . . . . . . . . . . . Hackware 6 | . . . . . . . . 2 . . . . 1 . . . . . 1 . . . . 2 . . . Protection 22 | . . . 1 . 3 1 9 1 . . . . . . 1 . 3 . . . 1 1 . . . . 1 Artifact . | . . . . . . . . . . . . . . . . . . . . . . . . . . . . Weapon 46 | . 4 6 2 . 4 2 13 3 . . . . 2 . . 4 3 . 2 . . . . 1 . . . Energy Gun 6 | . 1 3 . . 1 . . 1 . . . . . . . . . . . . . . . . . . . Energy Cannon . | . . . . . . . . . . . . . . . . . . . . . . . . . . . . Ballistic Gun 24 | . 1 3 2 . 1 2 11 1 . . . . . . . 2 1 . . . . . . . . . . Ballistic Cannon 2 | . 2 . . . . . . . . . . . . . . . . . . . . . . . . . . Launcher 2 | . . . . . 1 . 1 . . . . . . . . . . . . . . . . . . . . Special Weapon 1 | . . . . . 1 . . . . . . . . . . . . . . . . . . . . . . Impact Weapon . | . . . . . . . . . . . . . . . . . . . . . . . . . . . . Slashing Weapon 10 | . . . . . . . 1 1 . . . . 2 . . 2 2 . 2 . . . . . . . . Piercing Weapon 1 | . . . . . . . . . . . . . . . . . . . . . . . . 1 . . . Special Melee Weapon . | . . . . . . . . . . . . . . . . . . . . . . . . . . . . Unidentified Prototypes 22 | . . . . . 3 1 . 2 . . . . . . . . 5 . . . 1 4 . 1 . . 5 Parts Lost 33 | . 2 4 . . 8 . 18 . . . . . 1 . . . . . . . . . . . . . . Power 5 | . 1 . . . 1 . 2 . . . . . 1 . . . . . . . . . . . . . . Propulsion 6 | . . 1 . . 2 . 3 . . . . . . . . . . . . . . . . . . . . Utility 9 | . . . . . 4 . 5 . . . . . . . . . . . . . . . . . . . . Weapon 13 | . 1 3 . . 1 . 8 . . . . . . . . . . . . . . . . . . . . Highest Loss Streak 8 | . 2 2 . . 8 . 4 . . . . . 1 . . . . . . . . . . . . . . Average Slot Usage (%) 95 | . 99 100 98 100 94 90 94 90 92 92 92 92 91 100 100 100 97 100 96 94 94 85 82 81 84 84 82 Engine 6 | . 13 14 11 11 7 . 4 6 7 7 7 7 3 . . . . . . . . . . . . . . Core 1 | . . . . . 1 11 2 . . . . . 2 6 6 6 1 . . . . . . . . . . Reactor 1 | . . . . . . . . . . . . . . . . . 4 6 11 11 11 6 5 5 5 5 5 Treads 14 | . 23 28 22 22 22 22 17 1 . . . . . . . . . . . . . . . . . . . Flight 9 | . . . . . . . . 21 23 23 23 23 25 26 26 26 26 26 25 23 23 23 23 21 21 21 21 Device 6 | . . . . . . . . 14 15 15 15 15 14 13 11 6 15 20 16 23 23 27 29 23 21 21 22 Storage 27 | . 28 28 33 42 40 38 36 15 15 15 15 15 15 20 20 20 17 20 17 17 17 12 11 14 15 15 15 Processor 1 | . . . . . . . . 5 . . . . . 13 13 13 4 . . . . . . . . . . Hackware 3 | . . . . . . . . 7 15 15 15 15 16 6 6 6 6 6 6 . . . . 5 10 10 10 Protection 4 | . . . 9 1 1 2 13 7 7 7 7 7 4 . . 6 6 6 5 5 5 4 5 5 5 5 1 Energy Gun 3 | . 17 11 . . 2 5 . . . . . . . . . . . . . . . . . . . . . Ballistic Gun 9 | . . 16 22 22 16 11 16 . . . . . . . . 7 3 . . . . . . . . . . Ballistic Cannon 1 | . 9 . . . . . . . . . . . . . . . . . . . . . . . . . . Slashing Weapon 2 | . . . . . . . . 6 7 7 7 7 6 13 13 5 9 13 10 11 11 6 5 5 5 5 5 Naked Turns . | . . . . . . . . . . . . . . . . . . . . . . . . . . . . Heaviest Build 110 | 11 57 58 76 89 109 109 110 95 32 32 32 32 34 34 34 40 40 38 51 51 51 65 64 65 63 63 66 Greatest Support 73 | 20 40 40 40 40 40 40 40 40 32 32 32 32 38 34 40 40 40 40 56 56 56 73 66 66 66 66 67 Greatest Overweight (x) 5 | . 1 1 1 2 2 2 5 2 . . . . 2 . . . . . . . . . . . . . . Average Overweight (x) . | . . 1 1 1 1 1 2 . . . . . . . . . . . . . . . . . . . . Largest Inventory Capacity 30 | 6 18 18 24 30 30 30 30 30 12 12 12 12 12 12 12 12 12 12 12 12 12 12 12 12 12 12 12 Average Capacity 19 | 6 15 18 24 28 27 26 30 13 12 12 12 12 12 12 12 12 10 12 12 12 12 12 12 12 12 12 12 Most Carried 30 | 6 18 18 24 27 30 30 30 29 12 12 12 12 12 12 12 12 12 12 12 12 12 12 12 12 12 12 12 Average Carried 18 | 6 14 17 22 26 25 23 28 12 12 12 11 12 11 12 11 11 10 12 11 12 12 11 12 11 12 12 11 Final Capacity 30 | 6 18 18 24 30 30 30 30 12 12 12 12 12 12 12 12 12 12 12 12 12 12 12 12 12 12 12 12 Final Carried 30 | 6 18 18 24 27 30 30 29 12 12 12 12 12 12 12 12 12 12 12 12 12 12 12 12 12 12 12 12 Class Distribution -------------------- 37% | Hauler-Mutant 24% | Mutant 18% | Scavenger-Sprinter 8% | Hacker-Sprinter 5% | Sprinter Dominant Class ---------------- Mutant | -10/Materials Mutant | -10/Mines Hauler-Mutant | -9/Materials Hauler-Mutant | -9/Mines Hauler-Mutant | -9/Exiles Hauler-Mutant | -8/Mines Hauler-Mutant | -8/Materials Scavenger-Sprinter | -7/Factory Scavenger-Sprinter | -7/Lower Caves Scavenger-Sprinter | -7/Lower Caves Scavenger-Sprinter | -7/Data Miner Scavenger-Sprinter | -6/Proximity Caves Hacker-Sprinter | -6/Factory Sprinter | -6/Lower Caves Sprinter | -6/Lower Caves Scavenger-Sprinter | -6/Zion Scavenger-Sprinter | -6/Deep Caves Sprinter | -5/Proximity Caves Scavenger-Sprinter | -5/Factory Scavenger-Sprinter | -5/Upper Caves Scavenger-Sprinter | -5/Upper Caves Scavenger-Sprinter | -5/Warlord Scavenger-Sprinter | -4/Proximity Caves Scavenger-Sprinter | -4/Factory Hacker-Sprinter | -4/Upper Caves Hacker-Sprinter | -4/Upper Caves Hacker-Sprinter | -4/Zhirov Resources | -11 -10 -10 -9 -9 -9 -8 -8 -7 -7 -7 -7 -6 -6 -6 -6 -6 -6 -5 -5 -5 -5 -5 -4 -4 -4 -4 -4 ----------- Run | Scr Mat Min Mat Min Exi Min Mat Fac Low Low Dat Pro Fac Low Low Zio Dee Pro Fac Upp Upp War Pro Fac Upp Upp Zhi Matter Collected 3444 | 200 215 228 272 52 397 50 1058 100 89 . . . 115 40 10 40 348 . 61 29 . 90 . . 50 . . Remotely . | . . . . . . . . . . . . . . . . . . . . . . . . . . . . Salvage Created 4653 | 92 580 438 574 120 151 187 1711 173 . . . . 127 . . . 439 . 61 . . . . . . . . Parts 241 | . 30 27 36 6 22 12 75 8 . . . . 3 . . . 15 . 7 . . . . . . . . Haulers Intercepted 7 | . 2 . 3 . . . . 1 . . . . 1 . . . . . . . . . . . . . . Recyclers Shooed 5 | . . 1 1 . . . 3 . . . . . . . . . . . . . . . . . . . . Parts Field Recycled . | . . . . . . . . . . . . . . . . . . . . . . . . . . . . Retrieved Matter . | . . . . . . . . . . . . . . . . . . . . . . . . . . . . Parts Self-Destructed 17 | . . . . . . . . . . . . . . . . . . . . . . 5 . . . 12 . Prevented 2 | . . . . . . . . . . . . . . . . . . . . . . 2 . . . . . Kills | -11 -10 -10 -9 -9 -9 -8 -8 -7 -7 -7 -7 -6 -6 -6 -6 -6 -6 -5 -5 -5 -5 -5 -4 -4 -4 -4 -4 ------- Run | Scr Mat Min Mat Min Exi Min Mat Fac Low Low Dat Pro Fac Low Low Zio Dee Pro Fac Upp Upp War Pro Fac Upp Upp Zhi Combat Hostiles Destroyed 83 | . 14 12 12 2 6 4 29 1 . . . . . . . . 3 . . . . . . . . . . Melee 3 | . . . . . . . 3 . . . . . . . . . . . . . . . . . . . . Guns 65 | . 9 12 12 2 1 4 21 1 . . . . . . . . 3 . . . . . . . . . . Cannons 5 | . 5 . . . . . . . . . . . . . . . . . . . . . . . . . . AOE 10 | . . . . . 5 . 5 . . . . . . . . . . . . . . . . . . . . Classes Destroyed 13 | 1 4 1 1 . 1 1 4 . . . . . . . . . . . . . . . . . . . . Worker 3 | . 1 1 . 1 . . . . . . . . . . . . . . . . . . . . . . . Builder 1 | . . . . . . 1 . . . . . . . . . . . . . . . . . . . . . Hauler 7 | . 2 . 3 . . . . 1 . . . . 1 . . . . . . . . . . . . . . Recycler 8 | 1 . 1 . . . . 5 1 . . . . . . . . . . . . . . . . . . . Operator 1 | . . . . . . . 1 . . . . . . . . . . . . . . . . . . . . Watcher 5 | . . . 1 . . . 1 . . . . . 1 . . . . . 2 . . . . . . . . Swarmer 20 | . 3 6 4 . . 3 4 . . . . . . . . . . . . . . . . . . . . Grunt 41 | . 11 4 7 2 . . 17 . . . . . . . . . . . . . . . . . . . . Brawler 2 | . . . . . . . 1 1 . . . . . . . . . . . . . . . . . . . Duelist 1 | . . . . . . . 1 . . . . . . . . . . . . . . . . . . . . Sentry 7 | . . 2 1 . . . 4 . . . . . . . . . . . . . . . . . . . . Hunter 2 | . . . . . . . 2 . . . . . . . . . . . . . . . . . . . . Enhanced Grunt 2 | . . . . . . . . . . . . . . . . . 2 . . . . . . . . . . Z-Technician 5 | . . . . . . . . . . . . . . . . . 5 . . . . . . . . . . Assembled 10 | . . . . . 7 . . . . . . . . . . . 3 . . . . . . . . . . Thug 1 | . . . . . . . . . . . . . . . . . 1 . . . . . . . . . . Savage 1 | . . . . . . . . . . . . . . . . . 1 . . . . . . . . . . Best Kill Streak 6 | 1 4 3 5 2 6 5 6 1 . . . . 1 . . . 5 . 1 . . . . . . . . Combat Bots Only 5 | . 4 3 5 2 5 4 5 1 . . . . . . . . 2 . . . . . . . . . . Max Kills in Single Turn 4 | 1 1 1 1 1 4 1 3 1 . . . . 1 . . . 1 . 1 . . . . . . . . Gunslinging . | . . . . . . . . . . . . . . . . . . . . . . . . . . . . Exploded 4 | . . . . . 4 . 2 . . . . . . . . . . . . . . . . . . . . Melee 1 | . . . . . . . 1 . . . . . . . . . . . . . . . . . . . . Uniques/NPCs Destroyed 3 | . . . . . 2 . . . . . . . . . . . 1 . . . . . . . . . . EX-HEX (-9/Exiles) 8R-AWN (-9/Exiles) 12-ASH (-8/Mines) Z-Imprinter (-6/Deep Caves) Combat | -11 -10 -10 -9 -9 -9 -8 -8 -7 -7 -7 -7 -6 -6 -6 -6 -6 -6 -5 -5 -5 -5 -5 -4 -4 -4 -4 -4 -------- Run | Scr Mat Min Mat Min Exi Min Mat Fac Low Low Dat Pro Fac Low Low Zio Dee Pro Fac Upp Upp War Pro Fac Upp Upp Zhi Damage Taken 8693 | . 488 957 453 58 1350 221 3663 66 25 . 143 67 403 18 20 . 278 46 24 15 . 63 91 189 . 55 . Core 1192 | . 64 131 66 . 90 22 490 42 5 . 43 30 85 . . . 48 . . . . . 15 61 . . . Absorbed by Shields . | . . . . . . . . . . . . . . . . . . . . . . . . . . . . Core Remaining (%) 64 | 100 . 22 . . . 55 10 . . . . 82 . . . . . 84 . . . . 98 . . . . Volleys Fired 391 | 5 50 54 43 7 47 . 171 . . . . . . . . . 14 . . . . . . . . . . Largest 2 | 2 2 2 2 2 2 . 2 . . . . . . . . . 2 . . . . . . . . . . Hottest 90 | 90 90 85 46 46 46 . 46 . . . . . . . . . 60 . . . . . . . . . . Shots Fired 791 | 10 95 108 86 14 89 18 336 7 . . . . . . . . 28 . . . . . . . . . . Gun 757 | 10 74 108 86 14 79 18 333 7 . . . . . . . . 28 . . . . . . . . . . Cannon 21 | . 21 . . . . . . . . . . . . . . . . . . . . . . . . . . Launcher 6 | . . . . . 3 . 3 . . . . . . . . . . . . . . . . . . . . Special 7 | . . . . . 7 . . . . . . . . . . . . . . . . . . . . . . Kinetic 622 | . 23 64 86 14 74 . 333 . . . . . . . . . 28 . . . . . . . . . . Thermal 136 | 5 50 44 . . 12 18 . 7 . . . . . . . . . . . . . . . . . . . Explosive 6 | . . . . . 3 . 3 . . . . . . . . . . . . . . . . . . . . Electromagnetic 27 | 5 22 . . . . . . . . . . . . . . . . . . . . . . . . . . Robot Hit Streak 33 | 2 11 9 25 28 33 22 21 7 . . . . . . . . 8 . . . . . . . . . . Robot Miss Streak 5 | 4 4 4 4 1 1 . 3 . . . . . . . . . 5 . . . . . . . . . . Penetration Max 1 | . . . . . . . . . . . . . . . . . 1 . . . . . . . . . . Secondary Targets 7 | . . 2 1 . 1 . 2 . . . . . . . . . 1 . . . . . . . . . . Max Gunslinging Chain 1 | . . 1 1 . 1 . 1 . . . . . . . . . 1 . . . . . . . . . . Autonomous 30 | . . . . . 5 18 . 7 . . . . . . . . . . . . . . . . . . . Shots Hit Robots 627 | 4 62 76 61 12 81 18 267 11 . . 1 . 3 . . . 27 . 4 . . . . . . . . Core Hits 237 | 2 29 26 25 5 31 7 90 5 . . . . 2 . . . 13 . 2 . . . . . . . . Critical Hits 11 | . . 1 . . 2 . 3 . . . . . . . . . 5 . . . . . . . . . . Critical Kills 3 | . . . . . . . 1 . . . . . . . . . 2 . . . . . . . . . . Critical Parts Destroyed 5 | . . 1 . . . . 2 . . . . . . . . . 2 . . . . . . . . . . Melee Attacks 205 | . . . . . . . 7 16 13 14 1 8 32 . 8 . 39 4 21 2 2 . 6 24 4 4 . Impact . | . . . . . . . . . . . . . . . . . . . . . . . . . . . . Slashing 205 | . . . . . . . 7 16 13 14 1 8 32 . 8 . 39 4 21 2 2 . 6 24 4 4 . Piercing . | . . . . . . . . . . . . . . . . . . . . . . . . . . . . Sneak Attacks 21 | . . . . . . . 1 2 . . 1 . 2 . . . 14 . 1 . . . . . . . . Combat Hostiles . | . . . . . . . . . . . . . . . . . . . . . . . . . . . . Follow-up Attacks 3 | . . . . . . . . . . . . . . . . . 1 . 2 . . . . . . . . Damage Inflicted 12173 | 93 857 805 840 193 1695 502 3722 540 . . 149 . 269 . . . 2232 . 276 . . . . . . . . Guns 7647 | 66 606 785 833 193 1168 502 3039 198 . . . . . . . . 257 . . . . . . . . . . Cannons 231 | . 231 . . . . . . . . . . . . . . . . . . . . . . . . . . Explosions 905 | 27 . . . . 459 . 419 . . . . . . . . . . . . . . . . . . . . Melee 3255 | . . . . . . . 244 342 . . 149 . 269 . . . 1975 . 276 . . . . . . . . Ramming 67 | . 20 20 7 . . . 20 . . . . . . . . . . . . . . . . . . . . Kinetic 5970 | . 244 356 833 193 1048 . 3039 . . . . . . . . . 257 . . . . . . . . . . Thermal 1793 | 65 411 429 . . 188 502 . 198 . . . . . . . . . . . . . . . . . . . Explosive 878 | . . . . . 459 . 419 . . . . . . . . . . . . . . . . . . . . Electromagnetic 210 | 28 182 . . . . . . . . . . . . . . . . . . . . . . . . . . Impact . | . . . . . . . . . . . . . . . . . . . . . . . . . . . . Slashing 3255 | . . . . . . . 244 342 . . 149 . 269 . . . 1975 . 276 . . . . . . . . Piercing . | . . . . . . . . . . . . . . . . . . . . . . . . . . . . Highest Corruption 9 | . 3 3 . . . . 9 . . . . . . . . . . . . . . . . . . . . Average Corruption 4 | . 2 3 . . . . 8 . . . . . . . . . . . . . . . . . . . . Corruption Purged . | . . . . . . . . . . . . . . . . . . . . . . . . . . . . Effects 104 | . 20 26 . . . . 58 . . . . . . . . . . . . . . . . . . . . Message Errors 22 | . 8 5 . . . . 9 . . . . . . . . . . . . . . . . . . . . Matter Fused 15 | . 1 5 . . . . 9 . . . . . . . . . . . . . . . . . . . . Heat Flow Errors 12 | . 4 4 . . . . 4 . . . . . . . . . . . . . . . . . . . . Energy Discharges 11 | . 3 3 . . . . 5 . . . . . . . . . . . . . . . . . . . . Parts Rejected 2 | . . . . . . . 2 . . . . . . . . . . . . . . . . . . . . Data Loss (minor) 14 | . 1 4 . . . . 9 . . . . . . . . . . . . . . . . . . . . Data Loss (major) 2 | . . . . . . . 2 . . . . . . . . . . . . . . . . . . . . Misfires 1 | . . . . . . . 1 . . . . . . . . . . . . . . . . . . . . Targeting Errors 23 | . 3 5 . . . . 15 . . . . . . . . . . . . . . . . . . . . Weapon Failures 2 | . . . . . . . 2 . . . . . . . . . . . . . . . . . . . . Overload Shots . | . . . . . . . . . . . . . . . . . . . . . . . . . . . . Overflow Damage 1229 | . . . . . 6 . 150 18 . . 89 . 73 . . . 868 . 25 . . . . . . . . Projectiles . | . . . . . . . . . . . . . . . . . . . . . . . . . . . . Explosions 78 | . . . . . 6 . 72 . . . . . . . . . . . . . . . . . . . . Melee 1151 | . . . . . . . 78 18 . . 89 . 73 . . . 868 . 25 . . . . . . . . Knockbacks 1 | . 1 . . . . . . . . . . . . . . . . . . . . . . . . . . Impact . | . . . . . . . . . . . . . . . . . . . . . . . . . . . . Kinetic 1 | . 1 . . . . . . . . . . . . . . . . . . . . . . . . . . Secondary . | . . . . . . . . . . . . . . . . . . . . . . . . . . . . Self-Inflicted Damage 16 | . . . . . . . 16 . . . . . . . . . . . . . . . . . . . . Shots 1 | . . . . . . . 1 . . . . . . . . . . . . . . . . . . . . Rammed 9 | . 3 . 1 . . . 5 . . . . . . . . . . . . . . . . . . . . Targets Rammed 12 | . 4 1 1 . . . 6 . . . . . . . . . . . . . . . . . . . . Kicked . | . . . . . . . . . . . . . . . . . . . . . . . . . . . . Crushed 3 | . 1 1 . . . . 1 . . . . . . . . . . . . . . . . . . . . Highest Temperature 365 | 150 246 278 12 1 . . 365 . . . 1 . . . 2 . 45 . 107 118 34 120 . 6 . . . Average Temperature 88 | 78 78 111 5 1 . . 110 . . . 1 . . . 2 . 17 . 34 51 19 58 . 6 . . . Received Heat Transfer 2613 | . 228 339 126 33 . . 1620 27 6 . 18 . 69 . 9 . 72 9 9 . . . . 39 . 9 . Effects 8 | . . 2 . . . . 6 . . . . . . . . . . . . . . . . . . . . Shutdowns 1 | . . . . . . . 1 . . . . . . . . . . . . . . . . . . . . Energy Bleed 4 | . . 1 . . . . 3 . . . . . . . . . . . . . . . . . . . . Interference 1 | . . 1 . . . . . . . . . . . . . . . . . . . . . . . . . Short Circuit 1 | . . . . . . . 1 . . . . . . . . . . . . . . . . . . . . Damage (minor) 1 | . . . . . . . 1 . . . . . . . . . . . . . . . . . . . . Siege Activations . | . . . . . . . . . . . . . . . . . . . . . . . . . . . . Robots Corrupted 1 | . 1 . . . . . . . . . . . . . . . . . . . . . . . . . . Combat Hostiles . | . . . . . . . . . . . . . . . . . . . . . . . . . . . . Parts Fried 2 | . 2 . . . . . . . . . . . . . . . . . . . . . . . . . . Impact Corruptions . | . . . . . . . . . . . . . . . . . . . . . . . . . . . . Robots Melted . | . . . . . . . . . . . . . . . . . . . . . . . . . . . . Combat Hostiles . | . . . . . . . . . . . . . . . . . . . . . . . . . . . . Parts Melted 7 | . 2 2 . . . 2 . 1 . . . . . . . . . . . . . . . . . . . Heat Transferred 3125 | 161 1018 1136 . . 90 461 . 259 . . . . . . . . . . . . . . . . . . . Parts Sabotaged . | . . . . . . . . . . . . . . . . . . . . . . . . . . . . Parts Stolen . | . . . . . . . . . . . . . . . . . . . . . . . . . . . . Parts Stripped . | . . . . . . . . . . . . . . . . . . . . . . . . . . . . Power Chain Reactions 1 | 1 . . . . . . . . . . . . . . . . . . . . . . . . . . . Missiles Intercepted . | . . . . . . . . . . . . . . . . . . . . . . . . . . . . Alert | -11 -10 -10 -9 -9 -9 -8 -8 -7 -7 -7 -7 -6 -6 -6 -6 -6 -6 -5 -5 -5 -5 -5 -4 -4 -4 -4 -4 ------- Run | Scr Mat Min Mat Min Exi Min Mat Fac Low Low Dat Pro Fac Low Low Zio Dee Pro Fac Upp Upp War Pro Fac Upp Upp Zhi Peak Influence 688 | 5 279 135 204 50 . 76 417 315 . . . . 523 . . . . . 688 . . . . 325 . . . Average Influence 126 | 2 107 36 56 28 . 50 238 259 . . . . 119 . . . . . 282 . . . . 179 . . . Maximum Alert Level 2 | . 1 . 1 . . . 2 1 . . . . 2 . . . . . 2 . . . . 1 . . . Low Security (%) 76 | 100 94 100 97 100 . 100 32 19 . . . . 85 . . . . . 50 . . . . 59 . . . Level 1 21 | . 5 . 2 . . . 65 80 . . . . 6 . . . . . 22 . . . . 40 . . . Level 2 2 | . . . . . . . 1 . . . . . 8 . . . . . 26 . . . . . . . . Level 3 . | . . . . . . . . . . . . . . . . . . . . . . . . . . . . Level 4 . | . . . . . . . . . . . . . . . . . . . . . . . . . . . . Level 5 . | . . . . . . . . . . . . . . . . . . . . . . . . . . . . High Security . | . . . . . . . . . . . . . . . . . . . . . . . . . . . . Max Security . | . . . . . . . . . . . . . . . . . . . . . . . . . . . . Squads Dispatched 18 | . 4 . 1 . . . 5 2 . . . . 1 . . . . . 3 . . . 1 1 . . . Investigation 5 | . 1 . . . . . . 1 . . . . . . . . . . 2 . . . . 1 . . . Extermination 2 | . . . . . . . . . . . . . 1 . . . . . 1 . . . . . . . . Reinforcement 7 | . 3 . 1 . . . 2 1 . . . . . . . . . . . . . . . . . . . Assault 1 | . . . . . . . . . . . . . . . . . . . . . . . 1 . . . . Garrison 3 | . . . . . . . 3 . . . . . . . . . . . . . . . . . . . . Intercept . | . . . . . . . . . . . . . . . . . . . . . . . . . . . . Construction Impeded . | . . . . . . . . . . . . . . . . . . . . . . . . . . . . Haulers Reinforced 1 | . . . . . . . . 1 . . . . . . . . . . . . . . . . . . . Stealth | -11 -10 -10 -9 -9 -9 -8 -8 -7 -7 -7 -7 -6 -6 -6 -6 -6 -6 -5 -5 -5 -5 -5 -4 -4 -4 -4 -4 --------- Run | Scr Mat Min Mat Min Exi Min Mat Fac Low Low Dat Pro Fac Low Low Zio Dee Pro Fac Upp Upp War Pro Fac Upp Upp Zhi Distress Signals 13 | . 2 . 1 . . . 6 2 . . . . 2 . . . . . . . . . . . . . . Communications Jammed . | . . . . . . . . . . . . . . . . . . . . . . . . . . . . Distress Signals . | . . . . . . . . . . . . . . . . . . . . . . . . . . . . Times Spotted 298 | . 35 16 17 3 6 5 45 11 1 . 4 5 41 3 8 . 9 3 9 7 . 5 13 40 . 12 . Peak Tracking Total 13 | . 5 4 5 3 7 5 6 4 1 . 4 6 10 3 4 . 4 5 4 6 . 5 12 13 . 11 . Tactical Retreats 52 | . 1 2 1 1 . 1 5 6 . . . . 14 1 2 . . 2 3 1 . . 2 9 . 1 . Traps | -11 -10 -10 -9 -9 -9 -8 -8 -7 -7 -7 -7 -6 -6 -6 -6 -6 -6 -5 -5 -5 -5 -5 -4 -4 -4 -4 -4 ------- Run | Scr Mat Min Mat Min Exi Min Mat Fac Low Low Dat Pro Fac Low Low Zio Dee Pro Fac Upp Upp War Pro Fac Upp Upp Zhi Traps Triggered 3 | . 2 . . . . . . . . . . . 1 . . . . . . . . . . . . . . Indirectly . | . . . . . . . . . . . . . . . . . . . . . . . . . . . . Trap Hack Attempts . | . . . . . . . . . . . . . . . . . . . . . . . . . . . . Triggered . | . . . . . . . . . . . . . . . . . . . . . . . . . . . . Disarmed . | . . . . . . . . . . . . . . . . . . . . . . . . . . . . Reprogrammed . | . . . . . . . . . . . . . . . . . . . . . . . . . . . . Reused . | . . . . . . . . . . . . . . . . . . . . . . . . . . . . Traps Extracted . | . . . . . . . . . . . . . . . . . . . . . . . . . . . . Installed . | . . . . . . . . . . . . . . . . . . . . . . . . . . . . Triggered 11 | . . 2 . . . . . . . . . . . . . . . . . . 1 6 . . . 2 . Machines | -11 -10 -10 -9 -9 -9 -8 -8 -7 -7 -7 -7 -6 -6 -6 -6 -6 -6 -5 -5 -5 -5 -5 -4 -4 -4 -4 -4 ---------- Run | Scr Mat Min Mat Min Exi Min Mat Fac Low Low Dat Pro Fac Low Low Zio Dee Pro Fac Upp Upp War Pro Fac Upp Upp Zhi Machines Disabled 6 | . . . 1 . 2 . . . . . . . . . . . . . 1 . 1 . . 1 . . . Max in Single Turn 1 | . . . 1 . 1 . . . . . . . . . . . . . 1 . 1 . . 1 . . . Garrison Access 5 | . . . . . . . 1 2 . . . . 2 . . . . . . . . . . . . . . Machines Sabotaged . | . . . . . . . . . . . . . . . . . . . . . . . . . . . . Garrisons Compromised . | . . . . . . . . . . . . . . . . . . . . . . . . . . . . Overloaded Fab Kills . | . . . . . . . . . . . . . . . . . . . . . . . . . . . . Fab Network Shutdowns 2 | . . . . . . . . . . . . . 1 . . . . . 1 . . . . . . . . Hacking | -11 -10 -10 -9 -9 -9 -8 -8 -7 -7 -7 -7 -6 -6 -6 -6 -6 -6 -5 -5 -5 -5 -5 -4 -4 -4 -4 -4 --------- Run | Scr Mat Min Mat Min Exi Min Mat Fac Low Low Dat Pro Fac Low Low Zio Dee Pro Fac Upp Upp War Pro Fac Upp Upp Zhi Machines Accessed 75 | . 5 . 1 . 2 . 6 7 . . 4 1 15 . . 1 . . 13 . . 4 . 12 . . 4 Terminals 37 | . 5 . 1 . . . 2 4 . . . 1 7 . . . . . 10 . . . . 7 . . . Fabricators 7 | . . . . . . . . . . . . . 3 . . . . . 2 . . . . 2 . . . Repair Stations 3 | . . . . . . . 1 . . . . . 2 . . . . . . . . . . . . . . Recycling Units . | . . . . . . . . . . . . . . . . . . . . . . . . . . . . Scanalyzers 6 | . . . . . . . 2 1 . . . . 1 . . . . . 1 . . . . 1 . . . Garrison Access 7 | . . . . . . . 1 2 . . . . 2 . . . . . . . . . . 2 . . . Total Hacks 285 | . 14 . 6 . 2 . 19 22 . . 26 5 63 . . 4 . . 48 . . 10 . 49 . . 17 Successful 181 | . 9 . 4 . 2 . 12 11 . . 26 3 38 . . 4 . . 24 . . 10 . 21 . . 17 Failed 103 | . 4 . 2 . . . 7 11 . . . 2 25 . . . . . 24 . . . . 28 . . . Catastrophic 17 | . 2 . . . . . 1 1 . . . . 1 . . . . . 6 . . . . 6 . . . Database Lockouts 1 | . 1 . . . . . . . . . . . . . . . . . . . . . . . . . . Manual 115 | . 7 . 5 . 1 . 2 7 . . . 5 25 . . 5 . . 25 . . 1 . 32 . . . Terminals 159 | . 14 . 6 . . . 8 17 . . . 5 32 . . . . . 42 . . . . 35 . . . Fabricators 21 | . . . . . . . . . . . . . 11 . . . . . 4 . . . . 6 . . . Repair Stations 16 | . . . . . . . 4 . . . . . 12 . . . . . . . . . . . . . . Recycling Units . | . . . . . . . . . . . . . . . . . . . . . . . . . . . . Scanalyzers 15 | . . . . . . . 5 2 . . . . 4 . . . . . 2 . . . . 2 . . . Garrison Access 15 | . . . . . . . 2 3 . . . . 4 . . . . . . . . . . 6 . . . Terminal Hacks 113 | . 7 . 4 . 2 . 4 4 . . 26 3 10 . . 4 . . 12 . . 10 . 10 . . 17 Record 25 | . . . . . 1 . . . . . 11 . . . . . . . . . . 8 . . . . 5 Part Schematic 19 | . . . . . . . . . . . 5 2 . . . 4 . . 1 . . . . 3 . . 4 Robot Schematic 7 | . . . . . . . . . . . 7 . . . . . . . . . . . . . . . . Robot Analysis 6 | . 1 . . . . . . . . . . . 1 . . . . . . . . . . . . . 4 Prototype ID Bank 11 | . 3 . . . . . . . . . 3 . 1 . . . . . . . . . . . . . 4 Open Door 2 | . . . . . . . . . . . . . . . . . . . . . . 2 . . . . . Level Access Points 1 | . . . . . . . . . . . . 1 . . . . . . . . . . . . . . . Branch Access Points 7 | . 1 . 1 . . . 1 1 . . . . 1 . . . . . 1 . . . . 1 . . . Machine Index 1 | . . . . . . . . . . . . . . . . . . . 1 . . . . . . . . Terminal Index 1 | . . . . . . . . 1 . . . . . . . . . . . . . . . . . . . Fabricator Index 1 | . . . . . . . . . . . . . . . . . . . 1 . . . . . . . . Repair Station Index 1 | . . . . . . . . . . . . . 1 . . . . . . . . . . . . . . Garrison Index 2 | . . . . . . . . 1 . . . . 1 . . . . . . . . . . . . . . Alert Level 2 | . . . . . . . . . . . . . . . . . . . 1 . . . . 1 . . . Unreport Threat 2 | . . . 1 . . . . . . . . . . . . . . . . . . . . 1 . . . Locate Traps 12 | . 2 . 1 . . . 1 . . . . . 2 . . . . . 3 . . . . 3 . . . Recall Investigation 1 | . . . . . . . . . . . . . . . . . . . 1 . . . . . . . . Hauler Manifests 7 | . . . 1 . . . 1 1 . . . . 2 . . . . . 1 . . . . 1 . . . Registered Components 1 | . . . . . . . . . . . . . . . . . . . 1 . . . . . . . . Registered Prototypes 1 | . . . . . . . . . . . . . . . . . . . 1 . . . . . . . . Zone Layout 2 | . . . . . . . 1 . . . . . 1 . . . . . . . . . . . . . . EX-Prototype ID Bank 1 | . . . . . 1 . . . . . . . . . . . . . . . . . . . . . . Fabricator Hacks 12 | . . . . . . . . . . . . . 4 . . . . . 4 . . . . 4 . . . Load Schematic 6 | . . . . . . . . . . . . . 2 . . . . . 2 . . . . 2 . . . Build 6 | . . . . . . . . . . . . . 2 . . . . . 2 . . . . 2 . . . Repair Station Hacks 12 | . . . . . . . 4 . . . . . 8 . . . . . . . . . . . . . . Scan Component 6 | . . . . . . . 2 . . . . . 4 . . . . . . . . . . . . . . Repair 6 | . . . . . . . 2 . . . . . 4 . . . . . . . . . . . . . . Recycling Unit Hacks . | . . . . . . . . . . . . . . . . . . . . . . . . . . . . Scanalyzer 11 | . . . . . . . 2 2 . . . . 4 . . . . . 2 . . . . 1 . . . Insert Component 7 | . . . . . . . 1 1 . . . . 2 . . . . . 2 . . . . 1 . . . Analyze 4 | . . . . . . . 1 1 . . . . 2 . . . . . . . . . . . . . . Garrison Access Hacks 5 | . . . . . . . 1 2 . . . . 2 . . . . . . . . . . . . . . Seal Access 5 | . . . . . . . 1 2 . . . . 2 . . . . . . . . . . . . . . Unauthorized Hacks 28 | . 2 . . . . . 1 3 . . . . 10 . . . . . 6 . . . . 6 . . . Terminals 27 | . 2 . . . . . 1 3 . . . . 9 . . . . . 6 . . . . 6 . . . Track 4 | . . . . . . . . . . . . . 3 . . . . . 1 . . . . . . . . Assimilate 6 | . . . . . . . . . . . . . 4 . . . . . 1 . . . . 1 . . . Botnet 15 | . 2 . . . . . 1 3 . . . . 2 . . . . . 3 . . . . 4 . . . Operators 2 | . . . . . . . . . . . . . . . . . . . 1 . . . . 1 . . . Fabricators 1 | . . . . . . . . . . . . . 1 . . . . . . . . . . . . . . Siphon 1 | . . . . . . . . . . . . . 1 . . . . . . . . . . . . . . Repair Stations . | . . . . . . . . . . . . . . . . . . . . . . . . . . . . Recycling Units . | . . . . . . . . . . . . . . . . . . . . . . . . . . . . Scanalyzers . | . . . . . . . . . . . . . . . . . . . . . . . . . . . . Garrison Access . | . . . . . . . . . . . . . . . . . . . . . . . . . . . . Data Cores Recovered . | . . . . . . . . . . . . . . . . . . . . . . . . . . . . Used . | . . . . . . . . . . . . . . . . . . . . . . . . . . . . Hacking Detections 50 | . 5 . 1 . . . 3 5 . . . 1 13 . . . . . 11 . . . . 11 . . . Full Trace Events 4 | . . . . . . . . 1 . . . . . . . . . . 2 . . . . 1 . . . Feedback Events . | . . . . . . . . . . . . . . . . . . . . . . . . . . . . Feedback Blocked . | . . . . . . . . . . . . . . . . . . . . . . . . . . . . Robot Schematics Acquired 7 | . . . . . . . . . . . 7 . . . . . . . . . . . . . . . . Robots Built . | . . . . . . . . . . . . . . . . . . . . . . . . . . . . Matter . | . . . . . . . . . . . . . . . . . . . . . . . . . . . . Time . | . . . . . . . . . . . . . . . . . . . . . . . . . . . . Total Robot Build Rating . | . . . . . . . . . . . . . . . . . . . . . . . . . . . . Part Schematics Acquired 22 | . . . . . . . 1 . . . 5 2 2 . . 4 . . 1 . . . . 3 . . 4 Parts Built 6 | . . . . . . . . . . . . . 2 . . . . . 2 . . . . 2 . . . Matter 1468 | . . . . . . . . . . . . . 441 . . . . . 497 . . . . 530 . . . Time 573 | . . . . . . . . . . . . . 178 . . . . . 205 . . . . 190 . . . Total Part Build Rating 32 | . . . . . . . . . . . . . 8 . . . . . 12 . . . . 12 . . . Parts Repaired 6 | . . . . . . . 2 . . . . . 4 . . . . . . . . . . . . . . Time 361 | . . . . . . . 124 . . . . . 237 . . . . . . . . . . . . . . Parts Recycled . | . . . . . . . . . . . . . . . . . . . . . . . . . . . . Recycled Matter . | . . . . . . . . . . . . . . . . . . . . . . . . . . . . Retrieved Matter . | . . . . . . . . . . . . . . . . . . . . . . . . . . . . Retrieved Components . | . . . . . . . . . . . . . . . . . . . . . . . . . . . . Parts Scanalyzed 4 | . . . . . . . 1 1 . . . . 2 . . . . . . . . . . . . . . Part Schematics Acquired 3 | . . . . . . . 1 . . . . . 2 . . . . . . . . . . . . . . Parts Damaged 1 | . . . . . . . . . . . . . 1 . . . . . . . . . . . . . . Bothacking | -11 -10 -10 -9 -9 -9 -8 -8 -7 -7 -7 -7 -6 -6 -6 -6 -6 -6 -5 -5 -5 -5 -5 -4 -4 -4 -4 -4 ------------ Run | Scr Mat Min Mat Min Exi Min Mat Fac Low Low Dat Pro Fac Low Low Zio Dee Pro Fac Upp Upp War Pro Fac Upp Upp Zhi Used RIF Installer . | . . . . . . . . . . . . . . . . . . . . . . . . . . . . Robots Hacked . | . . . . . . . . . . . . . . . . . . . . . . . . . . . . Non-combat . | . . . . . . . . . . . . . . . . . . . . . . . . . . . . Combat . | . . . . . . . . . . . . . . . . . . . . . . . . . . . . Robot Hacks Applied . | . . . . . . . . . . . . . . . . . . . . . . . . . . . . Relay Couplers Released . | . . . . . . . . . . . . . . . . . . . . . . . . . . . . Robots Rewired . | . . . . . . . . . . . . . . . . . . . . . . . . . . . . Allies Hacked . | . . . . . . . . . . . . . . . . . . . . . . . . . . . . Hacks Repelled . | . . . . . . . . . . . . . . . . . . . . . . . . . . . . Allies | -11 -10 -10 -9 -9 -9 -8 -8 -7 -7 -7 -7 -6 -6 -6 -6 -6 -6 -5 -5 -5 -5 -5 -4 -4 -4 -4 -4 -------- Run | Scr Mat Min Mat Min Exi Min Mat Fac Low Low Dat Pro Fac Low Low Zio Dee Pro Fac Upp Upp War Pro Fac Upp Upp Zhi Total Allies 12 | . . . . . . . . . . . . . 3 . . 7 . . 1 . . . . 1 . . . Largest Group 7 | . . . . . . . . . . . . . 1 . . 7 7 . 1 1 . . . 1 . . . Highest-Rated Group 317 | . . . . . . . . . . . . . 26 . . 317 313 . 26 26 . . . 10 . . . Highest-Rated Ally 94 | . . . . . . . . . . . . . 26 . . 94 94 . 26 26 . . . 10 . . . Total Orders 4 | . . . . . . . . . . . . . . . . . . . . 1 . 1 . . . 2 . STAY 1 | . . . . . . . . . . . . . . . . . . . . . . . . . . 1 . FOLLOW 1 | . . . . . . . . . . . . . . . . . . . . . . . . . . 1 . RETURN 2 | . . . . . . . . . . . . . . . . . . . . 1 . 1 . . . . . Ally Attacks 47 | . . . . . . . . . . . . . . . . . 47 . . . . . . . . . . Total Damage 1398 | . . . . . . . . . . . . . . . . . 1398 . . . . . . . . . . Kills 6 | . . . . . . . . . . . . . . . . . 6 . . . . . . . . . . Allies Corrupted . | . . . . . . . . . . . . . . . . . . . . . . . . . . . . Allies Melted . | . . . . . . . . . . . . . . . . . . . . . . . . . . . . Intel | -11 -10 -10 -9 -9 -9 -8 -8 -7 -7 -7 -7 -6 -6 -6 -6 -6 -6 -5 -5 -5 -5 -5 -4 -4 -4 -4 -4 ------- Run | Scr Mat Min Mat Min Exi Min Mat Fac Low Low Dat Pro Fac Low Low Zio Dee Pro Fac Upp Upp War Pro Fac Upp Upp Zhi Robot Analysis Total 6 | . 1 . . . . . . . . . . . 1 . . . . . . . . . . . . . 4 Derelict Logs Recovered 12 | . . 1 . . . . . . . . . 1 . . 1 2 . 1 . 1 1 . 1 . 2 1 . Drone Launches 6 | . . . . . . . . . . . . . . . . . . . 3 . . . . . 3 . . Drone Recoveries . | . . . . . . . . . . . . . . . . . . . . . . . . . . . . Exploration | -11 -10 -10 -9 -9 -9 -8 -8 -7 -7 -7 -7 -6 -6 -6 -6 -6 -6 -5 -5 -5 -5 -5 -4 -4 -4 -4 -4 ------------- Run | Scr Mat Min Mat Min Exi Min Mat Fac Low Low Dat Pro Fac Low Low Zio Dee Pro Fac Upp Upp War Pro Fac Upp Upp Zhi Turns Passed 12187 | 20 1436 1270 536 718 1955 149 1541 275 154 116 37 102 1078 54 137 508 725 70 274 90 85 244 102 370 63 46 32 Spaces Moved 13657 | 1 720 592 196 331 837 52 380 520 357 242 90 236 2094 184 368 799 964 247 784 296 245 512 396 1536 335 248 95 Core 1 | . . . . . . . . . . . . . 1 . . . . . . . . . . . . . . Treads 3005 | . 609 592 196 331 837 52 380 8 . . . . . . . . . . . . . . . . . . . Legs 112 | 1 111 . . . . . . . . . . . . . . . . . . . . . . . . . . Wheels . | . . . . . . . . . . . . . . . . . . . . . . . . . . . . Hover . | . . . . . . . . . . . . . . . . . . . . . . . . . . . . Flight 10539 | . . . . . . . . 512 357 242 90 236 2093 184 368 799 964 247 784 296 245 512 396 1536 335 248 95 Fastest Speed 13 | 120 120 180 180 190 190 190 200 29 29 29 29 29 26 29 26 26 26 26 13 13 13 13 13 13 13 13 13 Average Speed 61 | 120 164 180 188 206 208 209 203 31 29 29 29 29 28 29 28 27 26 26 24 19 25 21 19 13 13 13 13 Slowest Speed 260 | 120 180 180 190 210 210 210 260 205 29 29 29 29 150 29 29 29 26 26 27 27 27 27 27 27 13 13 13 Overloaded Moves . | . . . . . . . . . . . . . . . . . . . . . . . . . . . . Propulsion Burnouts . | . . . . . . . . . . . . . . . . . . . . . . . . . . . . Robots Hopped 63 | . . . . . . . . 10 . . 3 1 28 . 3 . . . . . . 2 3 9 2 2 . Cave-ins Triggered . | . . . . . . . . . . . . . . . . . . . . . . . . . . . . Exploration Rate (%) 52 | 2 94 94 19 54 68 11 33 21 66 50 77 42 48 44 59 84 69 57 22 55 55 88 57 34 65 56 57 Regions Visited 27 Branch Regions 20 Pre-discovered Areas 9 | . . . . . 1 . . . . . 1 . . . 1 2 . . . . . . . . 1 . 3 Known Exits Taken 9 | . 1 . 1 . . . . 1 . . . 1 1 . . . . . 1 1 . . 1 1 . . . Unknown Exits Taken 18 | 1 . 1 . 1 1 1 1 . 1 1 1 . . 1 1 1 1 1 . . 1 1 . . 1 1 . Scrap Searched 22 | . . 1 . 4 . . . . 5 . . . . 2 2 2 . . . 3 . . 1 . 2 . . Spaces Dug 142 | . . . . . . . 2 12 13 14 . 8 27 . 7 . 10 2 9 1 1 . 6 22 4 4 . Terrain Destroyed 189 | 2 . . . . 16 1 24 12 13 14 . 8 27 . 7 . 16 2 9 1 1 . 6 22 4 4 . Melee 142 | . . . . . . . 2 12 13 14 . 8 27 . 7 . 10 2 9 1 1 . 6 22 4 4 . Projectile 8 | . . . . . 1 1 . . . . . . . . . . 6 . . . . . . . . . . AOE 39 | 2 . . . . 15 . 22 . . . . . . . . . . . . . . . . . . . . Actions | -11 -10 -10 -9 -9 -9 -8 -8 -7 -7 -7 -7 -6 -6 -6 -6 -6 -6 -5 -5 -5 -5 -5 -4 -4 -4 -4 -4 --------- Run | Scr Mat Min Mat Min Exi Min Mat Fac Low Low Dat Pro Fac Low Low Zio Dee Pro Fac Upp Upp War Pro Fac Upp Upp Zhi Total 16343 | 9 877 701 282 354 972 99 816 605 387 266 96 255 2499 183 384 1088 1367 248 841 325 263 650 409 1653 345 252 117 Wait 1652 | 4 59 22 19 11 9 17 187 35 18 11 7 12 367 . 10 283 295 . 15 29 14 117 11 89 8 3 . Move 13510 | . 719 591 195 330 836 51 379 500 356 241 84 233 2038 183 362 798 963 246 783 295 244 508 389 1517 331 243 95 Hop 57 | . . . . . . . . 9 . . 2 1 27 . 2 . . . . . . 1 3 9 1 2 . Pick Up 167 | . 21 11 13 4 31 11 24 3 . . 1 . 11 . . 1 16 . 7 . . 4 . 4 . . 5 Fast Attach 64 | . 2 2 . . 7 3 9 4 . . . . 5 . 1 1 12 . 2 . 2 6 . 3 . . 5 Attach 62 | . 4 5 2 . 7 2 15 13 . . . . 5 . . . . . 5 . . 1 . 2 . . 1 Detach 10 | . . . . . 3 1 . 3 . . . . . . 1 . . . . . . 1 . 1 . . . Swap 44 | . 7 4 4 1 3 . 6 . . . . 1 5 . . 3 6 . 2 . . . . . . . 2 Drop 183 | . 11 11 5 1 29 14 12 22 . . 1 . 9 . 1 2 29 . 10 . 1 12 . 4 . . 9 Fire 391 | 5 50 54 43 7 47 . 171 . . . . . . . . . 14 . . . . . . . . . . Melee 189 | . . . . . . . 7 16 13 14 1 8 32 . 7 . 32 2 16 1 2 . 6 24 4 4 . Ram . | . . . . . . . . . . . . . . . . . . . . . . . . . . . . Kick . | . . . . . . . . . . . . . . . . . . . . . . . . . . . . Crush 12 | . 4 1 1 . . . 6 . . . . . . . . . . . . . . . . . . . . Escape Stasis . | . . . . . . . . . . . . . . . . . . . . . . . . . . . . Rewire . | . . . . . . . . . . . . . . . . . . . . . . . . . . . . Trap . | . . . . . . . . . . . . . . . . . . . . . . . . . . . . Miscellaneous 2 | . . . . . . . . . . . . . . . . . . . 1 . . . . . 1 . . Route ------- -11/Scrapyard -10/Materials (discovered 4 exits: *Mat x3 / *Min) -10/Mines (discovered 2 exits: *Mat x2) -9/Materials (discovered 2 exits: *Min / *Sto) -9/Mines (discovered 2 exits: *Mat / *Exi) -9/Exiles -8/Mines -8/Materials -7/Factory (discovered 3 exits: *Fac / *Low x2) -7/Lower Caves -7/Lower Caves -7/Data Miner -6/Proximity Caves -6/Factory (discovered 4 exits: *Fac x2 / *Low x2) -6/Lower Caves -6/Lower Caves -6/Zion (discovered 2 exits: [*Dee] / [*Pro]) -6/Deep Caves -5/Proximity Caves -5/Factory (discovered 3 exits: Fac / *Upp x2) -5/Upper Caves -5/Upper Caves (discovered 2 exits: *Fac / *War) -5/Warlord -4/Proximity Caves -4/Factory (discovered 6 exits: [*Res] / *Upp x2 / Ext x2 / Arm) -4/Upper Caves -4/Upper Caves -4/Zhirov (discovered 1 exit: [*Pro]) History --------- Turn | Location | Event 10 | -11/Scrapyard | Discovered new exit (range 2) 21 | -11/Scrapyard | Entered Materials 67 | -10/Materials | Identified exit to Mines 67 | -10/Materials | Central database locked down 319 | -10/Materials | Build established: Mutant 680 | -10/Materials | Discovered new exit (range 10) 988 | -10/Materials | Discovered new exit (range 12) 1141 | -10/Materials | Discovered new exit (range 11) 1457 | -10/Materials | Entered Mines 1642 | -10/Mines | Discovered new exit (range 7) 1901 | -10/Mines | Found a damaged Exp. Sensor Array with a note attached 1907 | -10/Mines | Found Prototype Device 2062 | -10/Mines | Discovered new exit (range 12) 2193 | -10/Mines | Core integrity fell below 50% 2727 | -10/Mines | Entered Materials 2727 | -9/Materials | Evolved 2 slots: Utility x2 2728 | -9/Materials | Identified exit to Storage 2906 | -9/Materials | Identified exit to Mines 3041 | -9/Materials | Build established: Hauler-Mutant 3263 | -9/Materials | Entered Mines 3269 | -9/Mines | Discovered new exit (range 12) 3973 | -9/Mines | Deemed a non-threat by the Exiles lab entrance 3973 | -9/Mines | Discovered new exit (range 5) 3981 | -9/Mines | Entered Exiles 4034 | -9/Exiles | Met 8R-AWN 4068 | -9/Exiles | Met EX-HEX 4297 | -9/Exiles | Discovered new exit (range 15) 4459 | -9/Exiles | Met EX-DEC 4497 | -9/Exiles | Learned location of Zion (-6) 4931 | -9/Exiles | Met EX-BIN 4956 | -9/Exiles | Aligned with FarCom system 4958 | -9/Exiles | Given EX-Vault access code 5006 | -9/Exiles | Opened EX-Vault 5023 | -9/Exiles | Found Cloak of Protection 5027 | -9/Exiles | Found AWS/Thermal 5072 | -9/Exiles | Warned to stay clear of 0b10 Research branches 5315 | -9/Exiles | Attacked by the Exiles 5325 | -9/Exiles | Destroyed EX-HEX 5467 | -9/Exiles | Destroyed 8R-AWN 5470 | -9/Exiles | Found Prototype Ballistic Gun 5477 | -9/Exiles | Found Prototype Ballistic Gun 5481 | -9/Exiles | Lost 8 parts (1p2n4u1w) 5487 | -9/Exiles | Found Prototype Device 5487 | -9/Exiles | Identified AS-neutralizer No. 17b 5491 | -9/Exiles | Found Prototype Processor 5535 | -9/Exiles | Build established: Mutant 5665 | -9/Exiles | Found Prototype Protection 5861 | -9/Exiles | Build established: Hauler-Mutant 5936 | -9/Exiles | Left Exiles lab with AWS/Thermal 5936 | -9/Exiles | Entered Mines 5960 | -8/Mines | Identified 8R-AWN's Armor/EX 5968 | -8/Mines | 12-ASH came to Exiles' defense 5977 | -8/Mines | Destroyed 12-ASH 6068 | -8/Mines | Discovered new exit (range 9) 6085 | -8/Mines | Entered Materials 6085 | -8/Materials | Evolved 2 slots: Utility x2 6186 | -8/Materials | Garrison activated, responded to threat 6323 | -8/Materials | Lost 3 parts (2u1w) 6487 | -8/Materials | Lost 3 parts (1p1n1w) 6586 | -8/Materials | Identified Exp. Targeting Computer 6794 | -8/Materials | Repaired Lgt. Angular Momentum Engine 6869 | -8/Materials | Repaired Adv. Reaction Control System 7115 | -8/Materials | Core integrity fell below 50% 7315 | -8/Materials | Core integrity fell below 20% 7361 | -8/Materials | Lost 4 parts (1p2u1w) 7567 | -8/Materials | Discovered new exit (range 16) 7626 | -8/Materials | Entered Factory 7626 | -7/Factory | Evolved 2 slots: Propulsion x1, Utility x1 7699 | -7/Factory | Identified 8R-AWN's Boregun (x2) 7853 | -7/Factory | Discovered new exit (range 6) 7854 | -7/Factory | Identified exit to Factory 7870 | -7/Factory | Identified exit to Lower Caves 7901 | -7/Factory | Entered Lower Caves 7937 | -7/Lower Caves | Build established: Scavenger-Sprinter 8017 | -7/Lower Caves | Attracted the attention of an 0b10 checkpoint 8038 | -7/Lower Caves | Encountered a Warlord checkpoint 8049 | -7/Lower Caves | Discovered new exit (range 7) 8055 | -7/Lower Caves | Entered another Lower Caves area 8090 | -7/Lower Caves | Spotted B-75 Beast 8168 | -7/Lower Caves | Discovered new exit (range 14) 8171 | -7/Lower Caves | Entered Data Miner 8171 | -7/Data Miner | Discovered new exit (range 6) 8178 | -7/Data Miner | Met Data Miner 8182 | -7/Data Miner | Learned location of Section 7 (-2) 8182 | -7/Data Miner | Acquired the access code to Warlord's prototype stash 8187 | -7/Data Miner | Received God Mode back door access code from Data Miner 8208 | -7/Data Miner | Entered Proximity Caves 8266 | -6/Proximity Caves | Learned location of 1 exit from Factory 8310 | -6/Proximity Caves | Entered Factory 8310 | -6/Factory | Evolved 2 slots: Propulsion x1, Utility x1 8311 | -6/Factory | Identified exit to Lower Caves 8329 | -6/Factory | Discovered new exit (range 5) 8395 | -6/Factory | Assembled infested ambush trap array 8447 | -6/Factory | Spotted B-75 Beast 8814 | -6/Factory | Repaired Broken Imp. Cesium-ion Thruster 8864 | -6/Factory | Repaired Lgt. Angular Momentum Engine? 8986 | -6/Factory | Repaired Adv. Reaction Control System? 9025 | -6/Factory | Discovered new exit (range 5) 9251 | -6/Factory | Fabricated Imp. Cesium-ion Thruster? 9301 | -6/Factory | Local fabrication network quarantined 9304 | -6/Factory | Repaired Imp. Flight Unit? 9327 | -6/Factory | Fabricated Imp. Cesium-ion Thruster? 9388 | -6/Factory | Entered Lower Caves 9439 | -6/Lower Caves | Discovered new exit (range 10) 9442 | -6/Lower Caves | Entered another Lower Caves area 9577 | -6/Lower Caves | Discovered new exit (range 7) 9579 | -6/Lower Caves | Entered Zion 9582 | -6/Zion | Learned location of 1 exit from Factory 9586 | -6/Zion | Acquired unknown access codes intercepted by a Zionite 9596 | -6/Zion | Discovered new exit (range 13) 9602 | -6/Zion | Given A8's code to call for help 9754 | -6/Zion | Learned Factory emergency access door positions 9768 | -6/Zion | Learned Factory terminal intel 9774 | -6/Zion | Gained Derelict followers 9786 | -6/Zion | Visited the Megawrench Repair Shop 9786 | -6/Zion | Megawrench repaired 9 parts 9835 | -6/Zion | Learned Factory trap positions 9914 | -6/Zion | Opened final containment barrier to the Deep Caves 9917 | -6/Zion | Discovered new exit (range 5) 9918 | -6/Zion | Saw the warning signs outside the Deep Caves entrance 10032 | -6/Zion | Enhanced Grunt warped into view, answering call for help 10045 | -6/Zion | Enhanced Grunt warped into view, answering call for help 10087 | -6/Zion | Entered Deep Caves 10087 | -6/Deep Caves | Accompanied by 7 allies 10239 | -6/Deep Caves | Attacked by Z-Imprinter 10251 | -6/Deep Caves | Allies destroyed Z-Imprinter 10269 | -6/Deep Caves | Found Prototype Device 10269 | -6/Deep Caves | Identified Zio. Metafield Generator 10397 | -6/Deep Caves | Z-Facility disabled 10623 | -6/Deep Caves | Discovered new exit (range 6) 10676 | -6/Deep Caves | Found Prototype Protection 10677 | -6/Deep Caves | Identified Zio. Weapon Casing 10681 | -6/Deep Caves | Found Prototype Device 10681 | -6/Deep Caves | Identified Exp. Thermal Shield 10812 | -6/Deep Caves | Entered Proximity Caves 10866 | -5/Proximity Caves | Learned Factory emergency access door positions 10879 | -5/Proximity Caves | Build established: Sprinter 10881 | -5/Proximity Caves | Discovered new exit (range 5) 10882 | -5/Proximity Caves | Entered Factory 10882 | -5/Factory | Evolved 2 slots: Power x1, Propulsion x1 10883 | -5/Factory | Identified exit to Factory 10884 | -5/Factory | Loaded intel: 129 trap records 10886 | -5/Factory | Loaded intel: 19 terminal locations 10890 | -5/Factory | Identified exit to Upper Caves 10954 | -5/Factory | Found Prototype Processor 10984 | -5/Factory | Identified Exp. Signal Interpreter 11016 | -5/Factory | Fabricated Nuclear Pulse Array? 11083 | -5/Factory | Local fabrication network quarantined 11156 | -5/Factory | Entered Upper Caves 11156 | -5/Upper Caves | Accompanied by 4 allies 11195 | -5/Upper Caves | Spotted B-75 Beast 11202 | -5/Upper Caves | Identified exit to Upper Caves 11246 | -5/Upper Caves | Entered another Upper Caves area 11246 | -5/Upper Caves | Accompanied by 2 allies 11263 | -5/Upper Caves | Discovered exit to Factory (range 5) 11272 | -5/Upper Caves | Learned Factory machine intel 11278 | -5/Upper Caves | Spotted B-75 Beast 11286 | -5/Upper Caves | Found Alien Artifact 11286 | -5/Upper Caves | Identified Dimensional Node Initializer 11286 | -5/Upper Caves | Initialized slip node 11309 | -5/Upper Caves | Build established: Scavenger-Sprinter 11315 | -5/Upper Caves | Discovered new exit (range 5) 11331 | -5/Upper Caves | Entered Warlord 11331 | -5/Warlord | Accompanied by 1 ally 11392 | -5/Warlord | Met Warlord 11393 | -5/Warlord | Opened Warlord's prototype stash 11394 | -5/Warlord | Found Prototype Reactor 11394 | -5/Warlord | Identified Vortex Chain Reactor 11400 | -5/Warlord | Found Prototype Device 11400 | -5/Warlord | Identified Exp. Phase Shifter 11413 | -5/Warlord | Found Prototype Processor 11417 | -5/Warlord | Warlord's base attacked by MAIN.C 11568 | -5/Warlord | Opened side exit 11575 | -5/Warlord | Discovered new exit (range 8) 11575 | -5/Warlord | Entered Proximity Caves 11617 | -4/Proximity Caves | Spotted B-86 Titan 11638 | -4/Proximity Caves | Learned Research emergency access door positions 11653 | -4/Proximity Caves | Attracted the attention of an 0b10 outpost 11675 | -4/Proximity Caves | Discovered exit to Factory (range 6) 11677 | -4/Proximity Caves | Entered Factory 11677 | -4/Factory | Evolved 2 slots: Utility x2 11679 | -4/Factory | Loaded intel: 276 machine locations 11726 | -4/Factory | Discovered new exit (range 15) 11772 | -4/Factory | Identified exit to Upper Caves 11772 | -4/Factory | Identified exit to Extension 11772 | -4/Factory | Identified exit to Armory 11774 | -4/Factory | Found Prototype Device 11799 | -4/Factory | Found Prototype Hackware 11799 | -4/Factory | Identified Exp. System Shield 11851 | -4/Factory | Discovered new exit (range 15) 11873 | -4/Factory | Fabricated Adv. Hacking Suite? 12023 | -4/Factory | Fabricated Adv. Power Amplifier? 12047 | -4/Factory | Entered Upper Caves 12048 | -4/Upper Caves | Encountered a Warlord checkpoint 12090 | -4/Upper Caves | Learned Research security intel 12103 | -4/Upper Caves | Discovered new exit (range 6) 12110 | -4/Upper Caves | Entered another Upper Caves area 12110 | -4/Upper Caves | Accompanied by 3 allies 12111 | -4/Upper Caves | Learned Research terminal intel 12129 | -4/Upper Caves | Spotted B-86 Titan 12155 | -4/Upper Caves | Discovered new exit (range 8) 12156 | -4/Upper Caves | Attracted the attention of an 0b10 checkpoint 12156 | -4/Upper Caves | Entered Zhirov 12156 | -4/Zhirov | Discovered new exit (range 3) 12159 | -4/Zhirov | Met Zhirov 12161 | -4/Zhirov | Learned location of Quarantine (-2) 12161 | -4/Zhirov | Learned location of Testing (-3) 12161 | -4/Zhirov | Learned location of Command (-1) 12163 | -4/Zhirov | Zhirov requested help retrieving the SGEMP Prototype 12166 | -4/Zhirov | Found Alien Artifact 12166 | -4/Zhirov | Identified Integrated Dissipator 12166 | -4/Zhirov | Installed Integrated Dissipator, increased core heat dissipation (+2%) 12180 | -4/Zhirov | Identified EM Disruption Field 12188 | -4/Zhirov | Self-destructed Last Messages --------------- 12169_ Acquired Adv. Power Amplifier. 12171_ Acquired Prototype Protection. 12171_ Identified Exp. Power Shielding. 12172_ Dropped Exp. Power Shielding. 12173_ Acquired Prototype Device. 12173_ Identified Prc. Matter Filter. 12174_ Dropped Prc. Matter Filter. 12175_ Dropped Imp. Cesium-ion Thruster. 12176_ Acquired Prototype Flight Unit. 12176_ Identified Cld. Nuclear Pulse Thruster. 12179_ Acquired Adv. Hacking Suite. 12180_ Identified EM Disruption Field. 12183_ Dropped Hvy. Missile Launcher. 12184_ Acquired Exp. Power Shielding. 12185_ Dropped Imp. Cesium-ion Thruster. 12185_ Acquired Cld. Nuclear Pulse Thruster. 12186_ Dropped Imp. Cesium-ion Thruster. 12186_ Acquired Cld. Nuclear Pulse Thruster. 12186_ Dropped Zio. Weapon Casing. 12187_ Acquired Imp. Cesium-ion Thruster. Map ----- +----------------------------------------------------+ | ????#######?#" " ### ##?#### < ## | | ????#"X"X"#?#" ### # | | ????#X X#?#" # | | ????#" "#### # | | ????#"" ###### ### | | ????#####+#### ### ##????#######?? | | ????????# #?#"" #?# """" #?????????????? | | ????##### #?##" #### ##?#""""""#?????????????? | | ????# + #??#" #??###??##""""##?????????????? | | ????# ###??## #????????##""##??????????????? | | ????#XXX??????# #?????????#""#???????????????? | | ????###???????# #????????????????????????????? | | ???????######## ##???????????????????????????? | | ???????#"X # #???????????????????????????? | | ???????#" # #???????????????????????????? | | ???????#"" # #???????????????????????????? | | ???????#""! + +???????????????????????????? | | ???????#""!""# #???????????????????????????? | | ???????#"""""# #???????????????????????????? | | ???????#"""""# #???????????????????????????? | | ???????########++########?????????????????????? | | ???????#" """"#?????????????????????? | | ???????#"" "#?????????????????????? | | ???????#" " " " " ="#?????????????????????? | | ???????# " t"BB"]!"*="#?????????????????????? | | ???????# " i"BB" "!@"#?????????????????????? | | ???????##################?????????????????????? | | ??????????????????????????????????????????????? | | ??????????????????????????????????????????????? | | ??????????????????????????????????????????????? | | ??????????????????????????????????????????????? | | ??????????????????????????????????????????????? | | ??????????????????????????????????????????????? | | ??????????????????????????????????????????????? | | ??????????????????????????????????????????????? | | ??????????????????????????????????????????????? | | | | | | | | | | | | | | | | | | | | | | | | | | | | | +----------------------------------------------------+ Best States ------------- Heat Dissipation 69 Energy Generation 70 Energy Capacity 1700 Matter Stores 300 Matter Capacity 300 Sight Range 16 Terrain Scan Density 10 Power Amplification 30 Additional Mass Support 24 Armor Coverage 1000 Resistance: TH 10 Resistance: EX 90 Utility Shielding 66 Phase Shifting 20 Evasion (%) 101 Targeting Accuracy 20 Recoil Reduction 2 Offensive Hacking 14 Defensive Hacking 22 Item Schematics ----------------- Exp. Targeting Computer | -8/Materials | Scanalyzed Combat Drone Bay | -7/Data Miner | Free Lgt. Regenerative Plating | -7/Data Miner | Free Cmb. Gravmag System | -7/Data Miner | Free Exp. Terrain Scan Processor | -7/Data Miner | Free Tactical Coordination Suite | -7/Data Miner | Free Imp. System Shield | -6/Proximity Caves | Hacked Imp. Hacking Suite | -6/Proximity Caves | Hacked Imp. Cesium-ion Thruster | -6/Factory | Scanalyzed Gravity Neutralizing Apparatus | -6/Factory | Scanalyzed Riot Gun | -6/Zion | Free Hvy. Battle Rifle | -6/Zion | Free Flamer | -6/Zion | Free Enh. Flamer | -6/Zion | Free Nuclear Pulse Array | -5/Factory | Hacked Adv. Hacking Suite | -4/Factory | Hacked Field Propulsion Array | -4/Factory | Hacked Adv. Power Amplifier | -4/Factory | Hacked Assault Drone Bay | -4/Zhirov | Free Exp. Heat Sink | -4/Zhirov | Free Exp. Optical Array | -4/Zhirov | Free Imp. Arc Thrower | -4/Zhirov | Free Robot Schematics ------------------ S-27 Virus | -7/Data Miner | Free G-50 Soldier | -7/Data Miner | Free G-67 Veteran | -7/Data Miner | Free L-41 Fighter | -7/Data Miner | Free H-66 Slayer | -7/Data Miner | Free I-36 Angel | -7/Data Miner | Free I-47 Archangel | -7/Data Miner | Free Fabricated ------------ Imp. Cesium-ion Thruster | x1 | -6/Factory Imp. Cesium-ion Thruster | x1 | -6/Factory Nuclear Pulse Array | x2 | -5/Factory Adv. Hacking Suite | x1 | -4/Factory Adv. Power Amplifier | x1 | -4/Factory Alien Tech Used ----------------- Dimensional Node Initializer Integrated Dissipator Achievements -------------- None Challenges ------------ None Game ------ Seed ParticleOmegaBarrier Manual? 0 Play Time 04:12:51 Cumulative 719.1 hours Start 2020.07.12 @ 10:34:42 End 2020.09.03 @ 14:08:51 Sessions 13 Manual Loads 0 Difficulty Rogue Special Mode None Game No. 449 Rogue 449 Adventurer 0 Explorer 0 Win Type - Total 106 Types 72/6/8/10/5/1/4 Lore% 97 Gallery% 95 Achievement% 80 Wizard Run 0 Options --------- ASCII 0 Keyboard 0 Movement Numpad Keybinds 0 Fullscreen 2 Font 18/SmallcapsGlow Map View 76x50 Tactical HUD 1 Map Filters NONE Filters NONE Steam 1 RUN: 7f9c6e51-b74b-49fc-99ed-7f44e0e02ee1